lending/lending_fUSD_20260101
["ID","MTS","AMOUNT","RATE_DAILY","PERIOD"]
[400283814,1767264813294,-735.872,0.00015021,2]
[400283815,1767264850494,-111.837,0.00015021,2]
[400283816,1767264850518,-200.0,0.00015204,2]
[400283817,1767264850542,-2008.07542161,0.00015246,2]
[400283818,1767264850566,-397.08757839,0.000153,2]
[400283819,1767265275567,502.4,0.0002,30]
[400283823,1767265649616,264.57313734,0.00014,3]
[400283827,1767265831752,-166.66,0.00013682,2]
[400283828,1767265831763,-157.23712956,0.00013699,2]
[400283829,1767265831776,-754.91287044,0.00013699,2]
[400283830,1767265831786,-166.66,0.0001397,2]
[400283831,1767265831795,-164.2,0.00014196,2]
[400283832,1767265831806,-166.66,0.00014258,2]
[400283833,1767265831816,-1243.03,0.00014267,2]
[400283834,1767265831826,-150.0,0.000144,2]
[400283835,1767265831836,-258.92281494,0.000144,2]
[400283836,1767265831845,-150.0,0.000144,2]
[400283837,1767265831855,-248.4110335,0.000144,2]
[400283838,1767265831865,-253.09947408,0.000144,2]
[400283839,1767265831875,-150.0,0.000144,2]
[400283840,1767265831885,-166.66,0.00014546,2]
[400283841,1767265831894,-999.0,0.00014603,3]
[400283842,1767265831904,-496.33,0.00014678,2]
[400283843,1767265831914,-178.77,0.000147,2]
[400283844,1767265831924,-65.53388604,0.000147,2]
[400283845,1767265831937,-292.99923312,0.000147,2]
[400283847,1767265837879,-196.62688084,0.000147,2]
[400283848,1767265837890,-150.0,0.000147,2]
[400283849,1767265837900,-171.06,0.000147,2]
[400283850,1767265837910,-150.0,0.000147,2]
[400283851,1767265837919,-150.0,0.000147,2]
[400283852,1767265837930,-63.73711023,0.000147,2]
[400283853,1767265837942,-418.19288977,0.000147,2]
[400283854,1767265837951,-462.79711023,0.000147,2]
[400283855,1767265838089,-92.36288977,0.000147,2]
[400283856,1767265838100,-481.93,0.000147,2]
[400283857,1767265838110,-555.16,0.00014778,2]
[400283858,1767265838120,-166.66,0.00014834,2]
[400283859,1767265838130,-481.93,0.00014841,2]
[400283860,1767265838141,-555.16,0.00014878,2]
[400283861,1767265838150,-555.16,0.00014878,2]
[400283862,1767265838160,-555.16,0.00014878,2]
[400283863,1767265838170,-678.167,0.00014923,2]
[400283864,1767265838179,-481.93,0.00014941,2]
[400283865,1767265838190,-481.93,0.00014941,2]
[400283866,1767265838200,-171.06,0.00014978,2]
[400283867,1767265838210,-555.16,0.00014978,2]
[400283868,1767265838220,-300.0,0.0001505,2]
[400283869,1767265838230,-1629.93011023,0.0001505,2]
[400283878,1767265839923,-590.67609027,0.0001505,2]
[400283879,1767265839932,-555.16,0.00015078,2]
[400283880,1767265839942,-150.0,0.00015078,2]
[400283881,1767265839952,-171.06,0.00015078,2]
[400283882,1767265839963,-86.83729926,0.00015078,2]
[400283883,1767265839974,-63.16270074,0.00015078,2]
[400283884,1767265839984,-150.0,0.00015078,2]
[400283885,1767265839994,-178.77,0.00015078,2]
[400283886,1767265840003,-27.83968897,0.00015078,2]
[400283887,1767265840132,-527.32031103,0.00015078,2]
[400283888,1767265840143,-166.66,0.00015122,2]
[400283889,1767265840153,-184.99968897,0.00015178,2]
[400283890,1767265840165,-15.00031103,0.00015178,2]
[400283891,1767265840175,-244.50201361,0.00015197,2]
[400283892,1767265840212,-255.49798639,0.00015197,2]
[400283893,1767265840222,-399.78497267,0.00015197,2]
[400283894,1767265840234,-100.21502733,0.00015197,2]
[400283895,1767265840244,-500.0,0.00015197,2]
[400283896,1767265840254,-185.41428649,0.00015197,2]
[400283900,1767265843642,-18.1106431,0.00015197,2]
[400283901,1767265843652,-500.0,0.00015197,2]
[400283902,1767265843662,-377.21327327,0.00015197,2]
[400283903,1767265843679,-122.78672673,0.00015197,2]
[400283904,1767265843689,-183.9640573,0.00015197,2]
[400283905,1767265843699,-500.0,0.00015197,2]
[400283906,1767265843709,-500.0,0.00015197,2]
[400283907,1767265843719,-500.0,0.00015197,2]
[400283908,1767265843730,-506.11672707,0.00015198,2]
[400283909,1767265843740,-495.79925992,0.000152,2]
[400283910,1767265843750,-2711.24279211,0.000152,2]
[400283911,1767265843759,-1807.26787944,0.000152,2]
[400283912,1767265843769,-169.74465738,0.000152,2]
[400283913,1767265843779,-3989.11761883,0.000152,2]
[400283914,1767265843788,-270.67455281,0.00015218,2]
[400283915,1767265843798,-200.0,0.00015218,2]
[400283916,1767265843807,-512.36120716,0.00015218,2]
[400283917,1767265843817,-151.0,0.00015218,2]
[400283918,1767265843828,-151.0,0.00015218,2]
[400283919,1767265843838,-151.0,0.00015218,2]
[400283920,1767265843848,-151.0,0.00015218,2]
[400283921,1767265843858,-151.0,0.00015218,2]
[400283922,1767265843867,-151.0,0.00015218,2]
[400283923,1767265843877,-151.0,0.00015218,2]
[400283924,1767265843887,-151.0,0.00015218,2]
[400283925,1767265843898,-151.0,0.00015218,2]
[400283926,1767265843908,-250.49238894,0.00015218,2]
[400283927,1767265843919,-151.0,0.00015224,2]
[400283928,1767265843928,-666.0,0.00015226,2]
[400283929,1767265843940,-575.86159555,0.00015226,2]
[400283930,1767265843951,-302.89896223,0.00015226,2]
[400283931,1767265843961,-172.44591532,0.00015226,2]
[400283932,1767265843971,-249382.52565886,0.00015227,2]
[400283934,1767265845850,-262.9,0.00015227,2]
[400283935,1767265845904,-630.21210057,0.00015227,2]
[400283936,1767265846096,-269.99999995,0.00015227,2]
[400283937,1767265846118,-3268.74443991,0.00015227,2]
[400283938,1767265846130,-1352.0,0.00015227,2]
[400283978,1767267032020,-150.0,0.00014357,2]
[400283980,1767267032030,-269.0,0.00014357,2]
[400283982,1767267032040,-83.88313328,0.00014374,2]
[400283984,1767267032052,-458.44747329,0.00014374,2]
[400283986,1767267032064,-433.55939343,0.00014374,2]
[400283988,1767267032074,-150.0,0.000144,2]
[400283989,1767267032084,-150.0,0.000144,2]
[400283990,1767267032094,-150.0,0.000144,2]
[400283991,1767267032105,-150.0,0.000144,2]
[400283992,1767267032115,-200.0,0.00014735,2]
[400283993,1767267032125,-218.74148521,0.00014735,2]
[400283994,1767267032135,-187.12449526,0.00014904,2]
[400283995,1767267032146,-188.97089953,0.00014905,2]
[400283996,1767267032156,-151.0,0.00014997,2]
[400283997,1767267032166,-286.0,0.00014999,2]
[400283998,1767267032180,-300.0,0.00014999,2]
[400283999,1767267032190,-300.0,0.00014999,2]
[400284000,1767267032200,-150.0,0.00014999,2]
[400284001,1767267032210,-300.0,0.00014999,2]
[400284002,1767267032220,-293.43533253,0.00014999,2]
[400284003,1767267032230,-178.71171967,0.00014999,2]
[400284004,1767267032239,-506.07831735,0.00014999,2]
[400284005,1767267032249,-165.33826285,0.00014999,2]
[400284006,1767267032259,-8681.05415948,0.00015,2]
[400284007,1767267032275,-26617.97576922,0.00015,2]
[400284008,1767267032286,-11424.36634771,0.00015,2]
[400284009,1767267032298,-16374.79969354,0.00015,2]
[400284010,1767267032315,-574.6,0.00015,2]
[400284011,1767267032327,-2768.24648904,0.00015,2]
[400284012,1767267037976,-186.26906812,0.00014999,2]
[400284013,1767267037986,-500.0,0.00014999,2]
[400284014,1767267037996,-364.33000068,0.00014999,2]
[400284015,1767267038006,-132.9076121,0.00014999,2]
[400284016,1767267038137,-367.0923879,0.00014999,2]
[400284017,1767267038149,-500.0,0.00014999,2]
[400284018,1767267038161,-500.0,0.00014999,2]
[400284019,1767267038172,-500.0,0.00014999,2]
[400284020,1767267038183,-500.0,0.00014999,2]
[400284021,1767267038194,-438.67874009,0.00014999,2]
[400284022,1767267038205,-4380.57376028,0.00015,2]
[400284023,1767267038218,-306.23050185,0.00015,2]
[400284072,1767267040051,-10250.8,0.00015,2]
[400284073,1767267040158,-18807.71340157,0.00015,2]
[400284074,1767267040215,-570.16274356,0.00015,2]
[400284075,1767267040228,-2418.0,0.00015,2]
[400284076,1767267040240,-4133.84343981,0.00015,2]
[400284077,1767267040270,-27336.69674415,0.00015,2]
[400284078,1767267040282,-25492.01398521,0.00015,2]
[400284079,1767267040294,-7695.48428666,0.00015,2]
[400284080,1767267040307,-5505.3548237,0.00015,2]
[400284081,1767267040319,-5281.31155515,0.00015,2]
[400284082,1767267040336,-438.08034995,0.00015,2]
[400284083,1767267040435,-3800.79606342,0.00015,2]
[400284102,1767267044578,-2799.58221255,0.00015,2]
[400284103,1767267044632,-554.17769752,0.00015,2]
[400284104,1767267044649,-118725.45614013,0.00015,2]
[400284105,1767267044686,-22251.86108931,0.00015,2]
[400284106,1767267044698,-672810.81874619,0.00015,2]
[400284107,1767267044709,-1626.54109155,0.00015005,2]
[400284108,1767267044719,-3490.60604375,0.00015005,2]
[400284109,1767267044729,-500.0,0.00015073,2]
[400284110,1767267044739,-620.0,0.00015091,2]
[400284111,1767267044749,-616.58755216,0.00015091,2]
[400284112,1767267044758,-542.534,0.00015099,2]
[400284113,1767267044768,-200.0,0.00015105,2]
[400284114,1767267044779,-250.0,0.000152,2]
[400284115,1767267044788,-150.0,0.000152,2]
[400284116,1767267044799,-560.6853314,0.00015212,2]
[400284117,1767267044810,-1626.54109148,0.00015216,2]
[400284118,1767267044820,-151.0,0.00015222,2]
[400284119,1767267044830,-3087.4873978,0.00015225,2]
[400284120,1767267044840,-3935.6930433,0.00015225,2]
[400284121,1767267044851,-1319.9937627,0.00015225,2]
[400284122,1767267044860,-177.2639179,0.00015225,2]
[400284123,1767267044871,-313.4847627,0.00015225,2]
[400284124,1767267044881,-63031.7002303,0.00015225,2]
[400284125,1767267044891,-3490.6060437,0.00015276,2]
[400284126,1767267044900,-1717.0,0.00015294,2]
[400284127,1767267044910,-250.0,0.000153,2]
[400284128,1767267044920,-151.0,0.00015316,2]
[400284129,1767267044929,-151.0,0.00015316,2]
[400284130,1767267044939,-151.0,0.00015319,2]
[400284131,1767267044950,-164.2,0.0001538,2]
[400284132,1767267044960,-3148.33352549,0.00015396,2]
[400284133,1767267044969,-1110.32,0.000154,2]
[400284134,1767267044979,-150.0,0.000154,2]
[400284135,1767267044988,-178.77,0.000154,2]
[400284136,1767267044998,-171.06,0.000154,2]
[400284137,1767267045009,-150.0,0.000154,2]
[400284138,1767267045018,-481.93,0.000154,2]
[400284139,1767267045028,-150.0,0.000154,2]
[400284140,1767267045042,-481.93,0.000154,2]
[400284141,1767267045052,-555.16,0.000154,2]
[400284142,1767267045062,-150.0,0.000154,2]
[400284143,1767267045073,-178.77,0.000154,2]
[400284144,1767267045082,-171.06,0.000154,2]
[400284145,1767267045092,-150.0,0.000154,2]
[400284146,1767267045102,-150.0,0.000154,2]
[400284147,1767267045112,-150.0,0.000154,2]
[400284148,1767267045122,-481.93,0.000154,2]
[400284149,1767267045132,-481.93,0.000154,2]
[400284150,1767267045142,-555.16,0.000154,2]
[400284151,1767267045152,-267.26,0.000154,2]
[400284152,1767267045162,-313.81,0.000154,2]
[400284153,1767267045171,-481.93,0.000154,2]
[400284154,1767267045181,-150.0,0.000154,2]
[400284155,1767267045192,-171.03,0.000154,2]
[400284156,1767267045201,-171.03,0.000154,2]
[400284157,1767267045211,-188.97089951,0.00015403,2]
[400284158,1767267045221,-1626.54109148,0.00015426,2]
[400284159,1767267045232,-155.90337168,0.00015427,2]
[400284160,1767267045242,-5456.08493,0.00015427,2]
[400284161,1767267045252,-225.19,0.00015444,2]
[400284162,1767267045262,-357.4,0.000155,2]
[400284163,1767267045272,-555.16,0.000155,2]
[400284164,1767267045282,-171.03,0.000155,2]
[400284165,1767267045292,-481.93,0.000155,2]
[400284166,1767267045302,-403.13,0.000155,2]
[400284167,1767267045311,-153.1,0.000155,2]
[400284168,1767267045321,-178.77,0.000155,2]
[400284169,1767267045331,-811.16,0.000155,2]
[400284170,1767267045341,-341.14,0.000155,2]
[400284171,1767267045351,-302.0,0.000155,2]
[400284172,1767267045361,-481.93,0.000155,2]
[400284173,1767267045371,-150.0,0.000155,2]
[400284174,1767267045381,-3490.6060437,0.00015546,2]
[400284175,1767267045395,-178.74,0.00015616,2]
[400284176,1767267045405,-951.65,0.00015616,2]
[400284177,1767267045415,-596.90998776,0.00015621,2]
[400284178,1767267045425,-5456.08493,0.00015627,2]
[400284179,1767267045435,-1626.54109148,0.00015637,2]
[400284180,1767267045444,-267.26,0.00015674,2]
[400284181,1767267045454,-435.912,0.00015748,2]
[400284182,1767267045463,-1265.0,0.00015748,2]
[400284183,1767267045473,-913.0,0.00015748,2]
[400284184,1767267045483,-1199.0,0.00015748,2]
[400284185,1767267045493,-4813.0,0.00015748,2]
[400284186,1767267045503,-2433.0,0.00015748,2]
[400284187,1767267045512,-613.0,0.00015748,2]
[400284188,1767267045522,-3463.0,0.00015748,2]
[400284189,1767267045532,-151.0,0.00015748,2]
[400284190,1767267045543,-151.0,0.00015757,2]
[400284191,1767267045553,-151.0,0.00015758,2]
[400284192,1767267045563,-151.0,0.00015758,2]
[400284193,1767267045573,-151.0,0.00015758,2]
[400284194,1767267045582,-151.0,0.00015762,2]
[400284195,1767267045593,-151.0,0.00015762,2]
[400284196,1767267045603,-302.48201294,0.00015799,2]
[400284197,1767267045613,-158.0,0.000158,2]
[400284198,1767267045623,-158.0,0.000158,2]
[400284199,1767267045633,-10377.0,0.000158,2]
[400284200,1767267045650,-3490.6060437,0.00015817,2]
[400284201,1767267045660,-5456.08493,0.00015827,2]
[400284202,1767267045670,-1626.54109148,0.00015847,2]
[400284203,1767267045679,-935.33311877,0.00015876,2]
[400284204,1767267045689,-30000.0,0.0001589,2]
[400284205,1767267045699,-1500.0,0.00015897,2]
[400284206,1767267045708,-500.0,0.00015899,2]
[400284207,1767267045718,-531.17455967,0.00015899,2]
[400284208,1767267045728,-506.90698062,0.00015899,2]
[400284209,1767267045738,-548.12911362,0.00015899,2]
[400284210,1767267045748,-420.42051586,0.000159,2]
[400284211,1767267045762,-188.97089951,0.000159,2]
[400284212,1767267045775,-150.0,0.00015925,2]
[400284213,1767267045784,-150.0,0.00015925,2]
[400284214,1767267045794,-150.0,0.00015925,2]
[400284215,1767267045804,-150.512,0.00015925,2]
[400284216,1767267045818,-267.26,0.00015948,2]
[400284217,1767267045828,-168.0,0.00015962,2]
[400284218,1767267045839,-500.0,0.00015973,2]
[400284219,1767267045849,-500.0,0.00015973,2]
[400284220,1767267045860,-500.0,0.00015973,2]
[400284221,1767267045870,-192.43582026,0.0001599,2]
[400284222,1767267045881,-1115.60769283,0.00015999,5]
[400284223,1767267045891,-1054.09474226,0.00015999,5]
[400284224,1767267045902,-150.0,0.00016,2]
[400284225,1767267045912,-150.0,0.00016,2]
[400284226,1767267045922,-150.0,0.00016,2]
[400284227,1767267045932,-621726.21366637,0.00016,3]
[400284228,1767267045945,-1242.13822015,0.00016,3]
[400284229,1767267045957,-2448.77003185,0.00016,3]
[400284230,1767267045973,-368.14700699,0.00016,3]
[400284231,1767267046218,-151.0,0.00015803,2]
[400284233,1767267046228,-755.62722999,0.00016,3]
[400284239,1767267046274,-713.74827339,0.00016,3]
[400284355,1767267210571,740.0,0.00030136,120]
[400284357,1767267290488,733.92,0.00030136,120]
[400284382,1767268232310,-166.66,0.00013954,2]
[400284383,1767268232320,-166.66,0.00014248,2]
[400284384,1767268232330,-166.66,0.00014542,2]
[400284385,1767268232339,-754.22,0.00014571,2]
[400284386,1767268232349,-2952.24,0.00014657,2]
[400284387,1767268232359,-434.027,0.000147,2]
[400284388,1767268232368,-166.66,0.00014836,2]
[400284389,1767268232378,-5008.0,0.0001488,2]
[400284390,1767268232387,-500.0,0.00014898,2]
[400284391,1767268232396,-500.0,0.00014898,2]
[400284392,1767268232406,-455.67358047,0.00014898,2]
[400284393,1767268232415,-500.0,0.00014898,2]
[400284394,1767268232425,-500.0,0.00014898,2]
[400284395,1767268232435,-500.0,0.00014898,2]
[400284396,1767268232444,-367.0923879,0.00014898,2]
[400284397,1767268232453,-500.0,0.00014898,2]
[400284398,1767268232462,-500.0,0.00014898,2]
[400284399,1767268232472,-500.0,0.00014898,2]
[400284400,1767268232482,-500.0,0.00014898,2]
[400284401,1767268232491,-255.60256836,0.00014899,2]
[400284402,1767268232500,-418.81487334,0.00014899,2]
[400284403,1767268232510,-178.17,0.00014899,2]
[400284404,1767268232520,-254.8868,0.000149,2]
[400284405,1767268232530,-227.06327235,0.000149,2]
[400284406,1767268232539,-4917.1294408,0.000149,2]
[400284407,1767268232551,-25064.83943678,0.000149,2]
[400284419,1767268240514,-483.74900287,0.00014898,2]
[400284490,1767268243742,-16.25099713,0.00014898,2]
[400284491,1767268243752,-500.0,0.00014898,2]
[400284492,1767268243761,-500.0,0.00014898,2]
[400284493,1767268243771,-500.0,0.00014898,2]
[400284494,1767268243781,-169.45900287,0.00014898,2]
[400284495,1767268243798,-330.54099713,0.00014898,2]
[400284496,1767268243807,-45.28309065,0.00014898,2]
[400284503,1767268246206,-454.71690935,0.00014898,2]
[400284504,1767268246217,-500.0,0.00014898,2]
[400284505,1767268246228,-132.16789049,0.00014898,2]
[400284506,1767268278690,760.16801047,0.000135,2]
[400284508,1767269237423,-1000.0,0.00013,2]
[400284509,1767269237446,-257.0,0.00013,2]
[400284510,1767269237470,-239.83198953,0.000135,2]
[400284511,1767269237492,-875.65,0.00013699,2]
[400284512,1767269237515,-500.0,0.00013854,2]
[400284513,1767269237540,-1000.0,0.00014,2]
[400284514,1767269237562,-158.0,0.00014137,2]
[400284515,1767269237584,-164.2,0.00014431,2]
[400284516,1767269237609,-1745.30302185,0.00014795,2]
[400284517,1767269237631,-151.0,0.00014797,2]
[400284518,1767269237653,-150.0,0.00014799,2]
[400284519,1767269237676,-293.17041134,0.00014799,2]
[400284520,1767269237700,-178.92179785,0.00014799,2]
[400284521,1767269237988,-189.08165036,0.00014799,2]
[400284522,1767269238013,-201.84596773,0.00014799,2]
[400284523,1767269238040,-500.0,0.00014799,2]
[400284524,1767269238067,-500.0,0.00014799,2]
[400284525,1767269238092,-500.0,0.00014799,2]
[400284526,1767269238118,-500.0,0.00014799,2]
[400284527,1767269238142,-500.0,0.00014799,2]
[400284528,1767269238166,-500.0,0.00014799,2]
[400284529,1767269238190,-500.0,0.00014799,2]
[400284530,1767269238215,-500.0,0.00014799,2]
[400284531,1767269238239,-500.0,0.00014799,2]
[400284532,1767269238267,-500.0,0.00014799,2]
[400284533,1767269238292,-500.0,0.00014799,2]
[400284534,1767269238318,-500.0,0.00014799,2]
[400284535,1767269238343,-500.0,0.00014799,2]
[400284536,1767269238368,-500.0,0.00014799,2]
[400284537,1767269238393,-500.0,0.00014799,2]
[400284538,1767269238418,-500.0,0.00014799,2]
[400284539,1767269238442,-500.0,0.00014799,2]
[400284540,1767269238467,-500.0,0.00014799,2]
[400284541,1767269238491,-500.0,0.00014799,2]
[400284542,1767269238517,-296.55444051,0.00014799,2]
[400284543,1767269238542,-500.0,0.00014799,2]
[400284544,1767269238568,-500.0,0.00014799,2]
[400284545,1767269238593,-500.0,0.00014799,2]
[400284546,1767269238618,-500.0,0.00014799,2]
[400284547,1767269238642,-500.0,0.00014799,2]
[400284548,1767269238670,-83935.44072083,0.000148,2]
[400284549,1767269241590,-50000.0,0.000148,2]
[400284550,1767269242073,-50000.0,0.000148,2]
[400284552,1767269431266,-515.36,0.00013699,2]
[400284553,1767269431281,-794.32764366,0.00014431,2]
[400284554,1767269431296,-149.22235634,0.00014431,2]
[400284555,1767269431308,-150.0,0.00014442,2]
[400284556,1767269431318,-177.16136204,0.00014795,2]
[400284557,1767269431331,-500.0,0.00014799,2]
[400284558,1767269431341,-150.0,0.00014799,2]
[400284559,1767269431352,-1200.0,0.00014799,2]
[400284560,1767269431363,-300.0,0.00014799,2]
[400284561,1767269431373,-1328.41428162,0.000148,2]
[400284562,1767269431387,-482.13,0.000148,2]
[400284563,1767269431817,-0.5485,0.000148,2]
[400284564,1767269431830,-102293.34231091,0.000148,2]
[400284565,1767269431843,-2854.46666561,0.000148,2]
[400284566,1767269431856,-8529.71135064,0.000148,2]
[400284567,1767269431868,-13036.3097648,0.000148,2]
[400284568,1767269431881,-532.34415419,0.000148,2]
[400284569,1767269431894,-827.08473548,0.000148,2]
[400284570,1767269431907,-448.54201431,0.000148,2]
[400284571,1767269431920,-2178.95589453,0.000148,2]
[400284572,1767269431933,-3039.66725529,0.000148,2]
[400284573,1767269431946,-540.54142778,0.000148,2]
[400284574,1767269431959,-2389.94928522,0.000148,2]
[400284575,1767269431972,-787.27893922,0.000148,2]
[400284576,1767269431987,-630.76399746,0.000148,2]
[400284577,1767269437339,-646.48999974,0.000148,2]
[400284578,1767269437353,-1001.23298944,0.000148,2]
[400284579,1767269437394,-443.26536606,0.000148,2]
[400284580,1767269437407,-392.59463394,0.000148,2]
[400284581,1767269437449,-79318.3214013,0.000148,2]
[400284582,1767269437504,-1393.13671141,0.000148,2]
[400284583,1767269437559,-6173.24549921,0.000148,2]
[400284584,1767269437572,-2178.00072333,0.000148,2]
[400284606,1767269439396,-3030.275,0.000148,2]
[400284607,1767269439410,-447.1571751,0.000148,2]
[400284608,1767269439504,-22989.30025605,0.000148,2]
[400284609,1767269439518,-13851.02829593,0.000148,2]
[400284610,1767269439558,-303.94,0.000148,2]
[400284611,1767269439615,-360.11324534,0.000148,2]
[400284612,1767269439629,-451.29407143,0.000148,2]
[400284613,1767269439643,-28885.60086734,0.000148,2]
[400284614,1767269439655,-12971.61034677,0.000148,2]
[400284615,1767269439668,-14363.08807329,0.000148,2]
[400284616,1767269439681,-2334.80356846,0.000148,2]
[400284617,1767269439694,-3816.26585088,0.000148,2]
[400284618,1767269439719,-381.85794642,0.000148,2]
[400284619,1767269439732,-4138.7968325,0.000148,2]
[400284643,1767269444734,-1608.13266803,0.00014795,2]
[400284644,1767269444744,-5247.76800424,0.000148,2]
[400284645,1767269444791,-39684.89639591,0.000148,2]
[400284646,1767269444815,-15.51623799,0.000148,2]
[400284647,1767269444827,-143606.49566121,0.000148,2]
[400284649,1767269445425,-22018.36395871,0.000148,2]
[400284650,1767269445586,-397.02075332,0.000148,2]
[400284651,1767269445599,-908.811586,0.000148,2]
[400284652,1767269445639,-912.7084839,0.000148,2]
[400284669,1767270494033,385.0,0.00030137,120]
[400284686,1767270631558,-1148.78266955,0.00014377,2]
[400284687,1767270631613,-210.40733045,0.00014377,2]
[400284688,1767270631624,-1000.0,0.00014393,2]
[400284689,1767270631633,-200.0,0.00014393,2]
[400284690,1767270631643,-500.0,0.00014393,2]
[400284691,1767270631654,-999.0,0.00014432,3]
[400284692,1767270631664,-300.0,0.00014599,2]
[400284693,1767270631674,-300.0,0.00014599,2]
[400284694,1767270631684,-1167.4307,0.000146,2]
[400284695,1767270631694,-1655.9879,0.000146,2]
[400284696,1767270631704,-2500.0,0.000146,2]
[400284697,1767270631714,-166.98,0.00014636,2]
[400284698,1767270631724,-1407.1160845,0.00014666,2]
[400284699,1767270631733,-160.45190843,0.00014697,2]
[400284700,1767270631743,-150.0,0.00014698,2]
[400284701,1767270631753,-157.59219563,0.00014699,2]
[400284702,1767270631765,-201.77726352,0.00014699,2]
[400284703,1767270631776,-178.26656627,0.00014699,2]
[400284705,1767270631785,-402.98547405,0.00014699,2]
[400284707,1767270631795,-500.0,0.00014699,2]
[400284709,1767270631805,-256.21460344,0.00014699,2]
[400284710,1767270631815,-500.0,0.00014699,2]
[400284711,1767270631825,-500.0,0.00014699,2]
[400284713,1767270631836,-500.0,0.00014699,2]
[400284714,1767270631846,-429.65544405,0.00014699,2]
[400284715,1767270631856,-500.0,0.00014699,2]
[400284716,1767270631866,-500.0,0.00014699,2]
[400284717,1767270631875,-500.0,0.00014699,2]
[400284718,1767270631885,-500.0,0.00014699,2]
[400284719,1767270631894,-500.0,0.00014699,2]
[400284720,1767270631904,-500.0,0.00014699,2]
[400284721,1767270631914,-500.0,0.00014699,2]
[400284722,1767270631928,-500.0,0.00014699,2]
[400284723,1767270631938,-500.0,0.00014699,2]
[400284724,1767270631948,-500.0,0.00014699,2]
[400284725,1767270631958,-500.0,0.00014699,2]
[400284726,1767270631968,-500.0,0.00014699,2]
[400284727,1767270631978,-500.0,0.00014699,2]
[400284728,1767270631988,-551.00522254,0.00014699,2]
[400284729,1767270631998,-500.0,0.00014699,2]
[400284730,1767270632008,-500.0,0.00014699,2]
[400284731,1767270632018,-500.0,0.00014699,2]
[400284732,1767270632028,-500.0,0.00014699,2]
[400284733,1767270632038,-360.05395004,0.00014699,2]
[400284734,1767270632049,-25803.03769912,0.000147,2]
[400284735,1767270632061,-60850.00915993,0.000147,2]
[400284736,1767270632073,-263.9129058,0.000147,2]
[400284739,1767270637567,-335.00823583,0.000147,2]
[400284740,1767270637728,-5286.95738346,0.000147,2]
[400284772,1767270639541,-645.75987289,0.000147,2]
[400284773,1767270639716,-40932.31453005,0.000147,2]
[400284774,1767270639730,-500.0,0.000147,2]
[400284775,1767270639758,-362.5,0.000147,2]
[400284776,1767270639770,-353.3126,0.000147,2]
[400284777,1767270639783,-5070.0,0.000147,2]
[400284778,1767270639871,-525.16036174,0.000147,2]
[400284779,1767270639926,-5915.79999996,0.000147,2]
[400284785,1767270643073,-2497.51140713,0.00014666,2]
[400284787,1767270643084,-21622.99749425,0.000147,2]
[400284791,1767270643181,-264090.00000054,0.000147,2]
[400284792,1767270643193,-77935.17446178,0.000147,2]
[400284793,1767270643205,-218714.43424655,0.000147,2]
[400284820,1767270645649,-23631.75523459,0.000147,2]
[400284823,1767270870119,161.85,7.175e-05,2]
[400284824,1767270870371,161.85,8.371e-05,2]
[400284825,1767270870980,161.85,9.566e-05,2]
[400284826,1767271760131,-238.0,0.00010762,2]
[400284827,1767271760152,-161.85,0.00010762,2]
[400284828,1767271760173,-161.85,0.00011958,2]